[Event "GrandPrix_30.05"]
[Site "Chess.com"]
[Date "2020.05.30"]
[Round "8"]
[White "mishikomchedlishvili"]
[Black "Nitzan_Steinberg"]
[Result "1-0"]
[WhiteElo "2598"]
[BlackElo "2410"]
[TimeControl "600+2"]
[EndTime "11:43:08 PDT"]
[Termination "mishikomchedlishvili won by resignation"]

1. d4 {[%clk 0:10:01.9]} 1... d5 {[%clk 0:09:59.3]} 2. Nf3 {[%clk 0:10:00.1]}
2... Nf6 {[%clk 0:10:00]} 3. g3 {[%clk 0:10:00.4]} 3... g6 {[%clk 0:09:44.9]} 4.
Bg2 {[%clk 0:09:58.6]} 4... Bg7 {[%clk 0:09:43.2]} 5. O-O {[%clk 0:09:57.6]}
5... Nbd7 {[%clk 0:09:34.8]} 6. Bf4 {[%clk 0:09:45]} 6... O-O {[%clk 0:09:32.3]}
7. Qc1 {[%clk 0:09:36]} 7... c5 {[%clk 0:09:24.8]} 8. dxc5 {[%clk 0:09:11.4]}
8... Nxc5 {[%clk 0:09:10.7]} 9. Bh6 {[%clk 0:09:08.6]} 9... Bg4 {[%clk
0:09:03.4]} 10. Bxg7 {[%clk 0:09:05.3]} 10... Kxg7 {[%clk 0:09:02.6]} 11. Nc3
{[%clk 0:08:56.4]} 11... Bxf3 {[%clk 0:08:07.1]} 12. Bxf3 {[%clk 0:08:55.3]}
12... e6 {[%clk 0:08:08]} 13. Rd1 {[%clk 0:08:31.8]} 13... Qb6 {[%clk
0:08:07.8]} 14. a4 {[%clk 0:08:19.4]} 14... Rac8 {[%clk 0:07:57]} 15. a5 {[%clk
0:08:16.3]} 15... Qb4 {[%clk 0:07:43.6]} 16. e3 {[%clk 0:07:53.8]} 16... Rfd8
{[%clk 0:07:39.6]} 17. Rd4 {[%clk 0:07:49.2]} 1-0

[Event "GrandPrix_30.05"]
[Site "Chess.com"]
[Date "2020.05.30"]
[Round "8"]
[White "KacperKacprzak"]
[Black "ZEN-22"]
[Result "0-1"]
[WhiteElo "2047"]
[BlackElo "2141"]
[TimeControl "600+2"]
[EndTime "11:43:10 PDT"]
[Termination "ZEN-22 won by resignation"]

1. e4 {[%clk 0:09:59.2]} 1... e5 {[%clk 0:09:58.8]} 2. Nf3 {[%clk 0:09:56.6]}
2... d5 {[%clk 0:09:52.3]} 3. Nxe5 {[%clk 0:09:54]} 3... Bd6 {[%clk 0:09:52]} 4.
d4 {[%clk 0:09:43.2]} 4... dxe4 {[%clk 0:09:52.4]} 5. Nc4 {[%clk 0:09:42.6]}
5... Nc6 {[%clk 0:09:51.6]} 6. Be3 {[%clk 0:09:38.6]} 6... f5 {[%clk 0:09:49.1]}
7. g3 {[%clk 0:09:36.7]} 7... Nf6 {[%clk 0:09:49]} 8. Be2 {[%clk 0:09:34.8]}
8... O-O {[%clk 0:09:48]} 9. Nxd6 {[%clk 0:09:32.6]} 9... cxd6 {[%clk
0:09:48.2]} 10. c4 {[%clk 0:09:28.9]} 10... Kh8 {[%clk 0:09:47.5]} 11. Nc3
{[%clk 0:09:27.9]} 11... b6 {[%clk 0:09:40.7]} 12. Qd2 {[%clk 0:09:24.1]} 12...
Ng4 {[%clk 0:09:34.6]} 13. Bxg4 {[%clk 0:09:14.3]} 13... fxg4 {[%clk 0:09:34.5]}
14. Nxe4 {[%clk 0:09:15.2]} 14... Bf5 {[%clk 0:09:30.5]} 15. Nc3 {[%clk
0:09:08.4]} 15... Nb4 {[%clk 0:09:29.7]} 16. O-O {[%clk 0:09:08.1]} 16... Bd3
{[%clk 0:09:29.5]} 17. Rfe1 {[%clk 0:09:01.6]} 17... Bxc4 {[%clk 0:09:27]} 18.
d5 {[%clk 0:08:52.6]} 18... Nd3 {[%clk 0:09:23.4]} 19. Red1 {[%clk 0:08:50.2]}
19... Ne5 {[%clk 0:09:23.6]} 20. Qc2 {[%clk 0:08:45.3]} 20... Rc8 {[%clk
0:09:19.1]} 21. Qe4 {[%clk 0:08:42.3]} 21... Qd7 {[%clk 0:09:03.7]} 22. Bf4
{[%clk 0:08:36.2]} 22... Nf3+ {[%clk 0:09:02.9]} 23. Kg2 {[%clk 0:08:34.6]}
23... Rfe8 {[%clk 0:09:04.8]} 24. Qc2 {[%clk 0:08:30.3]} 24... Be2 {[%clk
0:08:28]} 25. Rh1 {[%clk 0:08:20.7]} 25... Nd4 {[%clk 0:08:27.1]} 26. Qd2 {[%clk
0:08:15.7]} 26... Bf3+ {[%clk 0:08:26]} 27. Kg1 {[%clk 0:08:17.6]} 27... Ne2+
{[%clk 0:07:38.5]} 28. Nxe2 {[%clk 0:08:14.7]} 28... Rxe2 {[%clk 0:07:39.3]} 0-1

[Event "GrandPrix_30.05"]
[Site "Chess.com"]
[Date "2020.05.30"]
[Round "8"]
[White "GadimbayliA"]
[Black "Funo09"]
[Result "1/2-1/2"]
[WhiteElo "2590"]
[BlackElo "2711"]
[TimeControl "600+2"]
[EndTime "11:43:15 PDT"]
[Termination "Game drawn by agreement"]

1. e4 {[%clk 0:10:01.9]} 1... c5 {[%clk 0:10:00.7]} 2. Nf3 {[%clk 0:10:02.6]}
2... Nf6 {[%clk 0:10:02.1]} 3. e5 {[%clk 0:10:03.4]} 3... Nd5 {[%clk 0:10:03.4]}
4. Nc3 {[%clk 0:10:04.7]} 4... e6 {[%clk 0:10:04.9]} 5. Nxd5 {[%clk 0:10:04.2]}
5... exd5 {[%clk 0:10:06.8]} 6. d4 {[%clk 0:10:05.6]} 6... Nc6 {[%clk
0:10:08.4]} 7. dxc5 {[%clk 0:09:56.3]} 7... Bxc5 {[%clk 0:10:10.3]} 8. Qxd5
{[%clk 0:09:53.2]} 8... Qb6 {[%clk 0:10:11.3]} 9. Bc4 {[%clk 0:09:53]} 9...
Bxf2+ {[%clk 0:10:07.8]} 10. Ke2 {[%clk 0:09:29.8]} 10... O-O {[%clk 0:10:07.3]}
11. Rf1 {[%clk 0:09:24.4]} 11... Bc5 {[%clk 0:10:08.3]} 12. Ng5 {[%clk
0:08:53.3]} 12... Nd4+ {[%clk 0:10:09.1]} 13. Kd1 {[%clk 0:08:54.5]} 13... Ne6
{[%clk 0:10:10.6]} 14. Ne4 {[%clk 0:08:36]} 14... d6 {[%clk 0:10:11.5]} 15. exd6
{[%clk 0:08:12.6]} 15... Rd8 {[%clk 0:10:11.9]} 16. Qh5 {[%clk 0:07:32.2]} 16...
Bxd6 {[%clk 0:10:12.3]} 17. Bd3 {[%clk 0:06:45.4]} 17... Bc7 {[%clk 0:10:12.7]}
18. Bd2 {[%clk 0:06:17.6]} 1/2-1/2

[Event "GrandPrix_30.05"]
[Site "Chess.com"]
[Date "2020.05.30"]
[Round "8"]
[White "Frozygul"]
[Black "grunbergmihai"]
[Result "0-1"]
[WhiteElo "2178"]
[BlackElo "2312"]
[TimeControl "600+2"]
[EndTime "11:43:17 PDT"]
[Termination "grunbergmihai won by resignation"]

1. d4 {[%clk 0:10:01.9]} 1... Nf6 {[%clk 0:09:52]} 2. c4 {[%clk 0:10:02.4]} 2...
g6 {[%clk 0:09:52.4]} 3. Nc3 {[%clk 0:10:03.5]} 3... d5 {[%clk 0:09:53.3]} 4.
cxd5 {[%clk 0:10:05.4]} 4... Nxd5 {[%clk 0:09:53.8]} 5. Bd2 {[%clk 0:10:07.3]}
5... Bg7 {[%clk 0:09:48.8]} 6. e4 {[%clk 0:10:08.6]} 6... Nb6 {[%clk 0:09:47.8]}
7. Be3 {[%clk 0:09:48.1]} 7... O-O {[%clk 0:09:34]} 8. h3 {[%clk 0:09:32.2]}
8... Nc6 {[%clk 0:09:30.4]} 9. Nf3 {[%clk 0:09:32.7]} 9... f5 {[%clk 0:09:07.5]}
10. d5 {[%clk 0:07:18]} 10... fxe4 {[%clk 0:08:22.9]} 11. dxc6 {[%clk
0:07:02.6]} 11... Qxd1+ {[%clk 0:08:12.9]} 12. Rxd1 {[%clk 0:07:04.5]} 12...
exf3 {[%clk 0:08:13.8]} 13. gxf3 {[%clk 0:07:06.4]} 13... bxc6 {[%clk
0:08:07.5]} 14. Be2 {[%clk 0:06:59.8]} 14... Be6 {[%clk 0:08:01.2]} 15. O-O
{[%clk 0:06:53.9]} 15... Bxh3 {[%clk 0:07:58.7]} 16. Rfe1 {[%clk 0:06:54.6]}
16... Rad8 {[%clk 0:07:52.9]} 17. Bd4 {[%clk 0:06:53.4]} 0-1

[Event "GrandPrix_30.05"]
[Site "Chess.com"]
[Date "2020.05.30"]
[Round "8"]
[White "caspiwins"]
[Black "Olghita64"]
[Result "1-0"]
[WhiteElo "2255"]
[BlackElo "2071"]
[TimeControl "600+2"]
[EndTime "11:44:07 PDT"]
[Termination "caspiwins won by resignation"]

1. e4 {[%clk 0:10:01.9]} 1... c6 {[%clk 0:10:00.1]} 2. d4 {[%clk 0:09:49.4]}
2... d5 {[%clk 0:10:00.2]} 3. e5 {[%clk 0:09:50.9]} 3... Bf5 {[%clk 0:10:00.1]}
4. h4 {[%clk 0:09:51.2]} 4... h5 {[%clk 0:09:58.1]} 5. Bd3 {[%clk 0:09:51.5]}
5... Bxd3 {[%clk 0:09:54.3]} 6. Qxd3 {[%clk 0:09:53.4]} 6... e6 {[%clk
0:09:55.2]} 7. Bg5 {[%clk 0:09:53.4]} 7... Be7 {[%clk 0:09:55.6]} 8. Nf3 {[%clk
0:09:51.2]} 8... Nh6 {[%clk 0:09:55.9]} 9. Bxh6 {[%clk 0:09:33.5]} 9... Rxh6
{[%clk 0:09:55.6]} 10. c4 {[%clk 0:09:34.7]} 10... Rh8 {[%clk 0:09:36.1]} 11.
Nc3 {[%clk 0:09:34.4]} 11... g6 {[%clk 0:09:27.2]} 12. g3 {[%clk 0:09:34.3]}
12... Kf8 {[%clk 0:09:23]} 13. O-O {[%clk 0:09:31.2]} 13... Kg7 {[%clk
0:09:23.2]} 14. c5 {[%clk 0:09:30.2]} 14... b6 {[%clk 0:08:59.9]} 15. b4 {[%clk
0:09:30.8]} 15... a5 {[%clk 0:09:00.5]} 16. a3 {[%clk 0:09:30.8]} 16... b5
{[%clk 0:08:33.8]} 17. Ne2 {[%clk 0:09:16.7]} 17... Na6 {[%clk 0:08:30]} 18.
Rab1 {[%clk 0:09:16.9]} 18... Nc7 {[%clk 0:08:21.3]} 19. Rb3 {[%clk 0:09:16.7]}
19... axb4 {[%clk 0:08:13.6]} 20. axb4 {[%clk 0:09:17.1]} 20... Ra4 {[%clk
0:08:14.1]} 21. Nf4 {[%clk 0:09:16]} 21... Qd7 {[%clk 0:07:43.9]} 22. Kg2 {[%clk
0:09:16.4]} 22... Rha8 {[%clk 0:07:38.8]} 23. Re1 {[%clk 0:09:15.9]} 23... Ra1
{[%clk 0:07:34.9]} 24. Re3 {[%clk 0:09:11.7]} 24... R8a2 {[%clk 0:07:24.7]} 25.
Nh3 {[%clk 0:09:11.7]} 25... Qd8 {[%clk 0:07:15.3]} 26. Nfg5 {[%clk 0:09:10]}
26... Ra7 {[%clk 0:06:23]} 27. Rf3 {[%clk 0:09:06.6]} 27... Bxg5 {[%clk
0:06:23.2]} 28. Nxg5 {[%clk 0:09:07.2]} 28... Ne8 {[%clk 0:06:16.9]} 29. Rxf7+
{[%clk 0:09:07.3]} 1-0

[Event "GrandPrix_30.05"]
[Site "Chess.com"]
[Date "2020.05.30"]
[Round "8"]
[White "woodhy"]
[Black "Gurvich_Vitaly"]
[Result "0-1"]
[WhiteElo "2148"]
[BlackElo "2265"]
[TimeControl "600+2"]
[EndTime "11:44:07 PDT"]
[Termination "Gurvich_Vitaly won by resignation"]

1. e4 {[%clk 0:10:01.9]} 1... c5 {[%clk 0:10:00.6]} 2. Nf3 {[%clk 0:10:00.8]}
2... Nc6 {[%clk 0:10:01.9]} 3. d4 {[%clk 0:10:02.7]} 3... cxd4 {[%clk
0:10:03.8]} 4. Nxd4 {[%clk 0:10:03.7]} 4... e5 {[%clk 0:10:04.9]} 5. Nb5 {[%clk
0:09:51.5]} 5... d6 {[%clk 0:10:04.7]} 6. c4 {[%clk 0:09:47.9]} 6... Be7 {[%clk
0:10:03.9]} 7. N1c3 {[%clk 0:09:42.7]} 7... a6 {[%clk 0:10:04.3]} 8. Na3 {[%clk
0:09:43]} 8... f5 {[%clk 0:10:05]} 9. Bd3 {[%clk 0:09:43.3]} 9... f4 {[%clk
0:10:04.9]} 10. g3 {[%clk 0:09:39]} 10... Nh6 {[%clk 0:10:05.5]} 11. gxf4 {[%clk
0:09:20.8]} 11... exf4 {[%clk 0:10:07.4]} 12. Bxf4 {[%clk 0:09:20]} 12... O-O
{[%clk 0:10:08.3]} 13. Bxh6 {[%clk 0:09:15.8]} 13... gxh6 {[%clk 0:10:10.2]} 14.
Nc2 {[%clk 0:09:09.5]} 14... Bh4 {[%clk 0:10:09.6]} 15. Rg1+ {[%clk 0:07:43.9]}
15... Kh8 {[%clk 0:10:09]} 16. Rg3 {[%clk 0:07:16.9]} 16... Qf6 {[%clk 0:09:20]}
17. Qd2 {[%clk 0:06:42.9]} 17... Bxg3 {[%clk 0:09:17]} 18. hxg3 {[%clk
0:06:41.9]} 18... Ne5 {[%clk 0:09:17.2]} 19. Be2 {[%clk 0:06:37.2]} 19... Qxf2+
{[%clk 0:09:07.7]} 20. Kd1 {[%clk 0:06:28.1]} 20... Bg4 {[%clk 0:09:08.1]} 21.
Bxg4 {[%clk 0:06:23.5]} 21... Nxg4 {[%clk 0:09:10]} 22. Ne2 {[%clk 0:06:12.8]}
22... Qf1+ {[%clk 0:08:37.7]} 23. Qe1 {[%clk 0:05:56.8]} 23... Nf2+ {[%clk
0:08:34.7]} 24. Kc1 {[%clk 0:05:53.2]} 24... Nd3+ {[%clk 0:08:35.6]} 0-1

[Event "GrandPrix_30.05"]
[Site "Chess.com"]
[Date "2020.05.30"]
[Round "8"]
[White "kotmizer"]
[Black "vagpat"]
[Result "1-0"]
[WhiteElo "2240"]
[BlackElo "2197"]
[TimeControl "600+2"]
[EndTime "11:44:21 PDT"]
[Termination "kotmizer won by resignation"]

1. c4 {[%clk 0:10:01.9]} 1... Nf6 {[%clk 0:09:59.5]} 2. Nc3 {[%clk 0:10:02.2]}
2... g6 {[%clk 0:10:00]} 3. g3 {[%clk 0:10:03]} 3... Bg7 {[%clk 0:10:00.5]} 4.
Bg2 {[%clk 0:10:04.6]} 4... O-O {[%clk 0:10:01.8]} 5. e3 {[%clk 0:10:06.2]} 5...
c5 {[%clk 0:09:48.7]} 6. Nge2 {[%clk 0:10:07.7]} 6... e6 {[%clk 0:09:39]} 7. O-O
{[%clk 0:10:09.1]} 7... Nc6 {[%clk 0:09:37.2]} 8. Nf4 {[%clk 0:10:08]} 8... Ne8
{[%clk 0:09:04.6]} 9. Rb1 {[%clk 0:10:05.3]} 9... Nc7 {[%clk 0:08:55.2]} 10. a3
{[%clk 0:10:04]} 10... a5 {[%clk 0:08:48.3]} 11. b3 {[%clk 0:09:59.3]} 11... b6
{[%clk 0:08:45.4]} 12. Bb2 {[%clk 0:09:58.8]} 12... Bb7 {[%clk 0:08:45.9]} 13.
Na4 {[%clk 0:09:59]} 13... Bxb2 {[%clk 0:08:35.8]} 14. Rxb2 {[%clk 0:09:59.1]}
14... Ne8 {[%clk 0:08:29.1]} 15. d4 {[%clk 0:09:56.8]} 15... d6 {[%clk
0:07:54.7]} 16. d5 {[%clk 0:09:47.2]} 16... exd5 {[%clk 0:07:36.8]} 17. Nxd5
{[%clk 0:09:47.1]} 17... Ra6 {[%clk 0:07:37.6]} 18. Rd2 {[%clk 0:09:47.3]} 18...
Ne7 {[%clk 0:06:01.8]} 19. Nf6+ {[%clk 0:09:27.3]} 19... Nxf6 {[%clk 0:06:01.8]}
20. Bxb7 {[%clk 0:09:28.8]} 20... Ra7 {[%clk 0:05:59.8]} 21. Rxd6 {[%clk
0:09:29.6]} 21... Qc7 {[%clk 0:05:55.9]} 22. Bg2 {[%clk 0:09:22.4]} 22... Nd7
{[%clk 0:05:32.4]} 23. Nc3 {[%clk 0:09:22.6]} 23... Nb8 {[%clk 0:05:03.9]} 24.
Nb5 {[%clk 0:09:22.7]} 24... Ra6 {[%clk 0:05:00.4]} 25. Nxc7 {[%clk 0:09:22.8]}
1-0

[Event "GrandPrix_30.05"]
[Site "Chess.com"]
[Date "2020.05.30"]
[Round "8"]
[White "fujiwara_hoga"]
[Black "Igor_Lysyj"]
[Result "0-1"]
[WhiteElo "2110"]
[BlackElo "2344"]
[TimeControl "600+2"]
[EndTime "11:45:07 PDT"]
[Termination "Igor_Lysyj won by resignation"]

1. d4 {[%clk 0:10:01.9]} 1... Nf6 {[%clk 0:09:59.7]} 2. c4 {[%clk 0:10:00.9]}
2... e6 {[%clk 0:10:00.6]} 3. Nc3 {[%clk 0:10:00.9]} 3... Bb4 {[%clk 0:10:00.9]}
4. e3 {[%clk 0:10:01.1]} 4... O-O {[%clk 0:10:01.2]} 5. Bd3 {[%clk 0:10:01.2]}
5... d5 {[%clk 0:09:51.1]} 6. a3 {[%clk 0:10:00.5]} 6... Bxc3+ {[%clk 0:09:50]}
7. bxc3 {[%clk 0:10:02.4]} 7... dxc4 {[%clk 0:09:51.4]} 8. Bxc4 {[%clk
0:10:02.7]} 8... c5 {[%clk 0:09:52.6]} 9. Nf3 {[%clk 0:10:03.3]} 9... Qc7 {[%clk
0:09:52.2]} 10. Ba2 {[%clk 0:10:03.9]} 10... b6 {[%clk 0:09:52.7]} 11. O-O
{[%clk 0:10:04.4]} 11... Ba6 {[%clk 0:09:50]} 12. Re1 {[%clk 0:10:04]} 12...
Nbd7 {[%clk 0:09:51.1]} 13. Bb2 {[%clk 0:09:59.5]} 13... e5 {[%clk 0:09:47.3]}
14. Rc1 {[%clk 0:09:27.7]} 14... e4 {[%clk 0:09:45.5]} 15. Nd2 {[%clk
0:09:22.1]} 15... Bd3 {[%clk 0:09:41.2]} 16. c4 {[%clk 0:09:11.9]} 16... cxd4
{[%clk 0:09:39.9]} 17. exd4 {[%clk 0:09:09.1]} 17... Rfe8 {[%clk 0:09:39.8]} 18.
Nf1 {[%clk 0:08:59.2]} 18... Bxf1 {[%clk 0:09:30.7]} 19. Rxf1 {[%clk 0:08:55]}
19... e3 {[%clk 0:09:31.7]} 20. fxe3 {[%clk 0:08:46.3]} 20... Rxe3 {[%clk
0:09:31.9]} 21. Rc3 {[%clk 0:08:22]} 21... Rxc3 {[%clk 0:09:29]} 22. Bxc3 {[%clk
0:08:22.4]} 22... h5 {[%clk 0:09:28.2]} 23. Qf3 {[%clk 0:08:08.8]} 23... Re8
{[%clk 0:09:27.1]} 24. a4 {[%clk 0:07:27.4]} 24... Qd6 {[%clk 0:09:20.6]} 25.
Bb1 {[%clk 0:07:05.5]} 25... Qa3 {[%clk 0:09:20.6]} 26. d5 {[%clk 0:06:09.5]}
26... Qc5+ {[%clk 0:09:11]} 27. Kh1 {[%clk 0:05:58.1]} 27... Re3 {[%clk
0:09:00]} 28. Qf5 {[%clk 0:05:04.7]} 28... Rxc3 {[%clk 0:08:54.5]} 29. Qg5
{[%clk 0:05:04.8]} 0-1

[Event "GrandPrix_30.05"]
[Site "Chess.com"]
[Date "2020.05.30"]
[Round "8"]
[White "SpasKozhuharov"]
[Black "Iljin_Timofey"]
[Result "0-1"]
[WhiteElo "2153"]
[BlackElo "2262"]
[TimeControl "600+2"]
[EndTime "11:46:05 PDT"]
[Termination "Iljin_Timofey won by resignation"]

1. c4 {[%clk 0:10:01.9]} 1... e6 {[%clk 0:10:00.2]} 2. d4 {[%clk 0:09:58.7]}
2... d5 {[%clk 0:10:02.1]} 3. Nc3 {[%clk 0:09:59.2]} 3... Bb4 {[%clk 0:10:02.4]}
4. Nf3 {[%clk 0:09:50.7]} 4... Nf6 {[%clk 0:10:00]} 5. cxd5 {[%clk 0:09:45.2]}
5... exd5 {[%clk 0:09:59.4]} 6. Bg5 {[%clk 0:09:45.7]} 6... h6 {[%clk
0:09:59.7]} 7. Bxf6 {[%clk 0:09:45.7]} 7... Qxf6 {[%clk 0:10:01.6]} 8. Qb3
{[%clk 0:09:42.2]} 8... Qb6 {[%clk 0:10:00.2]} 9. e3 {[%clk 0:09:32.9]} 9... O-O
{[%clk 0:10:00.4]} 10. Be2 {[%clk 0:09:31.6]} 10... c6 {[%clk 0:09:59.7]} 11.
O-O {[%clk 0:09:31.2]} 11... Bd6 {[%clk 0:09:57.9]} 12. Qc2 {[%clk 0:09:28.3]}
12... Bg4 {[%clk 0:09:39.9]} 13. a3 {[%clk 0:09:26]} 13... a5 {[%clk 0:09:37.6]}
14. h3 {[%clk 0:09:05.4]} 14... Be6 {[%clk 0:09:16.9]} 15. Na4 {[%clk
0:09:02.6]} 15... Qc7 {[%clk 0:09:13]} 16. Nc5 {[%clk 0:09:03.5]} 16... Bc8
{[%clk 0:09:13]} 17. b4 {[%clk 0:09:03.2]} 17... b6 {[%clk 0:09:09.4]} 18. Nd3
{[%clk 0:09:00]} 18... Bf5 {[%clk 0:08:30.4]} 19. Qc3 {[%clk 0:08:45.1]} 19...
Nd7 {[%clk 0:08:21]} 20. Rfc1 {[%clk 0:08:37.3]} 20... Rfc8 {[%clk 0:08:03.1]}
21. bxa5 {[%clk 0:08:08.8]} 21... Rxa5 {[%clk 0:07:51.4]} 22. Nb4 {[%clk
0:08:08.9]} 22... Qb7 {[%clk 0:07:31.5]} 23. Nxc6 {[%clk 0:08:03.4]} 23... Raa8
{[%clk 0:07:08.3]} 24. Bb5 {[%clk 0:07:50.9]} 24... Nf6 {[%clk 0:07:08.3]} 25.
Qb2 {[%clk 0:07:39.6]} 25... Bd7 {[%clk 0:06:54.8]} 26. Nce5 {[%clk 0:07:32]}
26... Rxc1+ {[%clk 0:06:54.8]} 27. Rxc1 {[%clk 0:07:17.8]} 27... Bxa3 {[%clk
0:06:54.8]} 28. Qb1 {[%clk 0:07:09.3]} 28... Bxb5 {[%clk 0:06:53.9]} 29. Rc3
{[%clk 0:07:03.8]} 29... Be8 {[%clk 0:06:44.8]} 30. Nh4 {[%clk 0:06:48.7]} 30...
Bf8 {[%clk 0:06:38.8]} 31. Nf5 {[%clk 0:06:46.2]} 31... Ne4 {[%clk 0:06:34.6]}
32. Rb3 {[%clk 0:06:36.1]} 32... Nd2 {[%clk 0:06:34.4]} 0-1

[Event "GrandPrix_30.05"]
[Site "Chess.com"]
[Date "2020.05.30"]
[Round "8"]
[White "Misterlose0"]
[Black "KJakubowski"]
[Result "1-0"]
[WhiteElo "2109"]
[BlackElo "2250"]
[TimeControl "600+2"]
[EndTime "11:46:29 PDT"]
[Termination "Misterlose0 won by resignation"]

1. e4 {[%clk 0:10:01.9]} 1... c5 {[%clk 0:09:57.7]} 2. d3 {[%clk 0:10:02.1]}
2... Nc6 {[%clk 0:09:55.8]} 3. g3 {[%clk 0:10:02.6]} 3... g6 {[%clk 0:09:49.9]}
4. Bg2 {[%clk 0:10:03.3]} 4... Bg7 {[%clk 0:09:51.2]} 5. f4 {[%clk 0:10:05.2]}
5... d6 {[%clk 0:09:47.2]} 6. Nf3 {[%clk 0:10:06.5]} 6... e5 {[%clk 0:09:44.8]}
7. O-O {[%clk 0:10:08.4]} 7... Nge7 {[%clk 0:09:45.1]} 8. Nc3 {[%clk 0:10:09]}
8... h6 {[%clk 0:09:12.9]} 9. f5 {[%clk 0:09:47.9]} 9... gxf5 {[%clk 0:09:09.2]}
10. Nh4 {[%clk 0:09:48.8]} 10... fxe4 {[%clk 0:09:07.5]} 11. dxe4 {[%clk
0:09:36.2]} 11... Nd4 {[%clk 0:08:39.2]} 12. Qh5 {[%clk 0:09:33.6]} 12... Be6
{[%clk 0:08:31.1]} 13. Nf5 {[%clk 0:09:12.6]} 13... Nexf5 {[%clk 0:08:10.4]} 14.
exf5 {[%clk 0:09:14.5]} 14... Bc4 {[%clk 0:08:10.9]} 15. f6 {[%clk 0:08:51.5]}
15... Bxf6 {[%clk 0:07:54.2]} 16. Bd5 {[%clk 0:08:50.5]} 16... Bxd5 {[%clk
0:06:03.3]} 17. Nxd5 {[%clk 0:08:52.4]} 17... Nxc2 {[%clk 0:06:03.8]} 18. Nxf6+
{[%clk 0:08:45]} 18... Kf8 {[%clk 0:06:00.8]} 19. Bxh6+ {[%clk 0:08:27.7]} 19...
Ke7 {[%clk 0:06:01.1]} 20. Qf5 {[%clk 0:07:38.8]} 1-0

[Event "GrandPrix_30.05"]
[Site "Chess.com"]
[Date "2020.05.30"]
[Round "8"]
[White "Dolphin_2010"]
[Black "Sakkcapak"]
[Result "0-1"]
[WhiteElo "2036"]
[BlackElo "2134"]
[TimeControl "600+2"]
[EndTime "11:46:49 PDT"]
[Termination "Sakkcapak won by resignation"]

1. e4 {[%clk 0:10:01.9]} 1... e6 {[%clk 0:09:59.9]} 2. d4 {[%clk 0:10:00.7]}
2... d5 {[%clk 0:10:00.5]} 3. Nd2 {[%clk 0:09:57.3]} 3... c5 {[%clk 0:09:59.5]}
4. exd5 {[%clk 0:09:55.4]} 4... Qxd5 {[%clk 0:09:59.3]} 5. dxc5 {[%clk
0:09:55.3]} 5... Nf6 {[%clk 0:09:58.8]} 6. Ngf3 {[%clk 0:09:54.1]} 6... Qxc5
{[%clk 0:09:58.9]} 7. Bd3 {[%clk 0:09:53.6]} 7... Nbd7 {[%clk 0:09:57.6]} 8. Qe2
{[%clk 0:09:53]} 8... Be7 {[%clk 0:09:54.6]} 9. O-O {[%clk 0:09:52.3]} 9... O-O
{[%clk 0:09:54.9]} 10. Ne4 {[%clk 0:09:45]} 10... Nxe4 {[%clk 0:09:52]} 11. Qxe4
{[%clk 0:09:46.9]} 11... Nf6 {[%clk 0:09:51.8]} 12. Qh4 {[%clk 0:09:46]} 12...
h6 {[%clk 0:09:45.5]} 13. Be3 {[%clk 0:09:42.6]} 13... Qa5 {[%clk 0:09:32]} 14.
Rfd1 {[%clk 0:09:17.2]} 14... Bd7 {[%clk 0:09:24.1]} 15. Bd4 {[%clk 0:09:02.7]}
15... Bc6 {[%clk 0:08:57]} 16. Ne5 {[%clk 0:08:58.4]} 16... Bb5 {[%clk
0:08:52.7]} 17. Bc3 {[%clk 0:08:48.5]} 17... Qb6 {[%clk 0:08:46]} 18. Bd4 {[%clk
0:08:47.9]} 18... Qa5 {[%clk 0:08:36.6]} 19. Bc3 {[%clk 0:08:32.7]} 19... Qa6
{[%clk 0:08:34.8]} 20. Bb4 {[%clk 0:08:13.6]} 20... Bxb4 {[%clk 0:08:23.9]} 21.
Qxb4 {[%clk 0:08:15.5]} 21... Bxd3 {[%clk 0:08:22.7]} 22. Nxd3 {[%clk
0:08:13.4]} 22... Rfd8 {[%clk 0:08:20.7]} 23. h3 {[%clk 0:08:03.6]} 23... b6
{[%clk 0:08:03.5]} 24. c4 {[%clk 0:07:18.2]} 24... Rac8 {[%clk 0:07:45.9]} 25.
Ne5 {[%clk 0:07:11.9]} 25... Qb7 {[%clk 0:07:34.8]} 26. Qa3 {[%clk 0:06:21.2]}
26... Qc7 {[%clk 0:07:25]} 27. Qe3 {[%clk 0:06:15.6]} 27... Rd6 {[%clk
0:07:08.1]} 28. Qa3 {[%clk 0:05:44.1]} 28... Rxd1+ {[%clk 0:07:05.1]} 29. Rxd1
{[%clk 0:05:45.2]} 29... Qxe5 {[%clk 0:07:06.2]} 30. Qxa7 {[%clk 0:05:45.9]}
30... Qc7 {[%clk 0:06:57.9]} 31. Qa6 {[%clk 0:05:42]} 31... Rd8 {[%clk
0:06:48.9]} 32. Rxd8+ {[%clk 0:05:36.5]} 32... Qxd8 {[%clk 0:06:49.2]} 0-1

[Event "GrandPrix_30.05"]
[Site "Chess.com"]
[Date "2020.05.30"]
[Round "8"]
[White "Alex_Krayz"]
[Black "szachuspl"]
[Result "1-0"]
[WhiteElo "2228"]
[BlackElo "2315"]
[TimeControl "600+2"]
[EndTime "11:46:55 PDT"]
[Termination "Alex_Krayz won by resignation"]

1. e4 {[%clk 0:10:01.9]} 1... c5 {[%clk 0:10:00.4]} 2. Nf3 {[%clk 0:10:01.2]}
2... e6 {[%clk 0:10:00]} 3. c3 {[%clk 0:10:00.6]} 3... Nf6 {[%clk 0:10:00.1]} 4.
e5 {[%clk 0:10:00.3]} 4... Nd5 {[%clk 0:10:01.3]} 5. d4 {[%clk 0:10:00.9]} 5...
cxd4 {[%clk 0:10:02]} 6. cxd4 {[%clk 0:10:01.6]} 6... d6 {[%clk 0:10:03.1]} 7.
Bc4 {[%clk 0:10:01.9]} 7... Nb6 {[%clk 0:10:03.6]} 8. Bd3 {[%clk 0:10:01.7]}
8... N8d7 {[%clk 0:10:04.2]} 9. Qe2 {[%clk 0:09:50.2]} 9... dxe5 {[%clk
0:10:02.4]} 10. dxe5 {[%clk 0:09:48.5]} 10... Nc5 {[%clk 0:10:01.4]} 11. Bc2
{[%clk 0:09:46.2]} 11... Be7 {[%clk 0:09:59.7]} 12. O-O {[%clk 0:09:28.5]} 12...
O-O {[%clk 0:10:00.3]} 13. Nc3 {[%clk 0:09:25.2]} 13... Bd7 {[%clk 0:09:59.8]}
14. b4 {[%clk 0:08:23.2]} 14... Nca4 {[%clk 0:10:00.5]} 15. Ne4 {[%clk
0:08:19.4]} 15... Bxb4 {[%clk 0:09:54.3]} 16. Qd3 {[%clk 0:05:18.3]} 16... g6
{[%clk 0:08:41.1]} 17. Nf6+ {[%clk 0:04:59.4]} 17... Kh8 {[%clk 0:08:37.9]} 18.
Ng5 {[%clk 0:04:25.8]} 18... Nd5 {[%clk 0:07:56.9]} 19. Ngxh7 {[%clk 0:04:20]}
19... Nxf6 {[%clk 0:07:22.7]} 20. Nxf6 {[%clk 0:04:16.6]} 20... Kg7 {[%clk
0:07:18.6]} 21. Bh6+ {[%clk 0:04:12.9]} 1-0